bitfinex/quotes_SOLUSD_20240808
["timestamp","ask_amount","ask_price","bid_price","bid_amount"]
[1723080746418,6.7277,148.64,148.48,1.3454275]
[1723080746615,1.68298533,148.63,148.47,15.8604]
[1723080747013,6.7304,148.58,148.41,22.6067]
[1723080747214,6.7314,148.56,148.41,22.6067]
[1723080747420,42.02384092,148.55,148.41,16.3127]
[1723080747727,27.0726,148.54,148.41,16.3127]
[1723080747947,29.09686092,148.53,148.41,16.3127]
[1723080748105,45.0,148.52,148.41,16.3127]
[1723080748308,6.7349,148.48,148.35,15.403]
[1723080748521,1.85472078,148.47,148.35,15.403]
[1723080748734,0.17,148.46,148.35,15.403]
[1723080749932,6.7372,148.43,148.28,15.9065]
[1723080750113,1.68531964,148.42,148.28,15.9065]
[1723080750314,0.34,148.41,148.28,15.9065]
[1723080750715,1.68516752,148.4,148.28,15.9065]
[1723080751033,0.17,148.39,148.28,15.9065]
[1723080751241,45.0,148.43,148.28,17.25459178]
[1723080751427,0.34,148.42,148.28,15.9065]
[1723080751617,2.02520426,148.42,148.28,15.9065]
[1723080751945,2.02520426,148.42,148.22,15.4283]
[1723080752114,20.34,148.39,148.22,15.4283]
[1723080752421,47.02581726,148.38,148.22,15.4283]
[1723080752736,45.34,148.38,148.23,1.25586123]
[1723080752917,45.34,148.38,148.22,15.4283]
[1723080752918,45.34,148.38,148.24,1.34862683]
[1723080753233,0.34,148.38,148.24,1.34862683]
[1723080753436,1.68545752,148.37,148.23,20.0]
[1723080753636,0.34,148.36,148.22,15.4283]
[1723080753841,0.17,148.35,148.22,15.4283]
[1723080754046,0.34,148.38,148.23,1.3486831]
[1723080754216,0.34,148.38,148.24,1.34849028]
[1723080754536,1.85561222,148.37,148.22,16.77678977]
[1723080754739,0.17,148.36,148.22,16.77678977]
[1723080754930,0.17,148.36,148.23,1.34869033]
[1723080755116,8.73190769,148.41,148.24,1.34836083]
[1723080755323,45.34,148.4,148.24,1.34836083]
[1723080755742,1.68545444,148.39,148.22,15.4283]
[1723080755957,0.34,148.38,148.22,15.4283]
[1723080756143,0.34,148.38,148.23,20.0]
[1723080756454,1.68563532,148.37,148.23,20.0]
[1723080756620,0.34,148.36,148.23,20.0]
[1723080757051,0.34,148.36,148.22,15.4283]
[1723080757350,0.17,148.36,148.22,16.77702716]
[1723080757641,0.17,148.36,148.23,1.34851952]
[1723080757846,52.04565141,148.4,148.23,1.34851952]
[1723080758038,6.7395,148.38,148.22,15.4283]
[1723080758224,46.85587913,148.37,148.22,15.4283]
[1723080758428,0.17,148.37,148.23,1.3487293]
[1723080758745,0.17,148.37,148.23,1.348482]
[1723080759048,0.34,148.38,148.24,1.34859093]
[1723080759621,0.34,148.38,148.23,46.34848337]
[1723080759821,1.6856047,148.37,148.24,20.0]
[1723080760344,0.34,148.36,148.23,20.0]
[1723080760731,0.34,148.36,148.23,21.3485712]
[1723080761224,0.34,148.37,148.23,20.0]
[1723080761444,0.34,148.37,148.23,21.34871838]
[1723080761757,0.34,148.37,148.23,20.0]
[1723080761932,7.04565141,148.4,148.24,1.34857299]
[1723080762243,13.3555,148.45,148.24,1.34857299]
[1723080762453,7.0468542,148.42,148.24,1.34857299]
[1723080762653,1.68536112,148.41,148.24,65.34]
[1723080762833,6.6192,148.45,148.26,54.17]
[1723080763033,6.6192,148.45,148.3,54.17]
[1723080763256,6.559,148.51,148.31,73.00062178]
[1723080763450,22.02439515,148.5,148.31,72.66062178]
[1723080763755,1.68439515,148.5,148.31,72.66062178]
[1723080764050,13.59834383,148.51,148.31,72.66062178]
[1723080764051,6.559,148.51,148.34,33.83]
[1723080764365,6.559,148.51,148.38,33.83]
[1723080764533,6.559,148.51,148.39,21.34699008]
[1723080764856,6.559,148.57,148.39,21.34699008]
[1723080765027,6.559,148.57,148.42,33.83]
[1723080765226,6.559,148.57,148.4,45.0]
[1723080765227,6.559,148.57,148.43,21.34678715]
[1723080765431,8.24249588,148.57,148.43,20.0]
[1723080765761,8.24249588,148.57,148.39,21.34679671]
[1723080766049,6.559,148.57,148.4,46.34693488]
[1723080766252,6.559,148.57,148.41,20.0]
[1723080766458,26.899,148.57,148.42,1.34693184]
[1723080766632,26.899,148.57,148.41,20.0]
[1723080766956,1.8538242,148.56,148.4,1.34703991]
[1723080767133,0.17,148.56,148.4,1.34703991]
[1723080767330,47.0238241,148.56,148.4,1.34703991]
[1723080767933,45.34,148.56,148.4,1.34703991]
[1723080768250,6.559,148.57,148.4,1.34703991]
[1723080768550,8.2421416,148.57,148.4,1.34703991]
[1723080768738,6.559,148.57,148.4,1.34703991]
[1723080769450,8.24262193,148.57,148.4,46.34703991]
[1723080769660,8.24262193,148.57,148.41,20.0]
[1723080769834,45.34,148.56,148.42,1.34668312]
[1723080770161,45.34,148.56,148.42,1.34709675]
[1723080770333,45.34,148.56,148.43,1.34684795]
[1723080770532,45.17,148.56,148.43,1.34684795]
[1723080771038,1.68358616,148.55,148.39,20.0]
[1723080771239,0.17,148.54,148.39,20.0]
[1723080771455,1.85392354,148.54,148.39,20.0]
[1723080771866,0.17,148.53,148.39,20.0]
[1723080772243,0.17,148.53,148.4,46.34712074]
[1723080772560,0.17,148.53,148.41,20.0]
[1723080772766,6.559,148.57,148.41,1.34687751]
[1723080773747,6.559,148.57,148.4,46.34678426]
[1723080773936,6.559,148.57,148.41,21.34677929]
[1723080774140,6.559,148.57,148.42,45.0]
[1723080774447,6.559,148.57,148.43,41.8567286]
[1723080774763,6.0294,148.63,148.46,54.17]
[1723080774969,6.0294,148.63,148.47,87.02603454]
[1723080775337,6.0294,148.63,148.47,66.51603454]
[1723080775536,6.0294,148.63,148.47,86.68603454]
[1723080775736,6.0294,148.63,148.48,0.17]
[1723080775937,6.0294,148.63,148.49,1.34599503]
[1723080777369,0.34,148.62,148.49,1.34599503]
[1723080778962,0.4737842,148.65,148.5,54.34]
[1723080779168,0.4737842,148.65,148.51,66.51565613]
[1723080779456,0.4737842,148.65,148.53,21.8049]
[1723080779660,0.4737842,148.65,148.54,35.175585]
[1723080779837,0.4737842,148.65,148.55,46.68521915]
[1723080780039,0.4737842,148.65,148.56,20.0]
[1723080780339,0.4737842,148.65,148.57,46.34521742]
[1723080780562,0.4737842,148.65,148.58,21.34521753]
[1723080780963,0.4737842,148.65,148.59,1.34544421]
[1723080781466,0.4737842,148.65,148.59,20.0]
[1723080781763,0.4737842,148.65,148.53,15.5442]
[1723080782471,0.4737842,148.65,148.47,49.0002]
[1723080782472,6.2825,148.63,148.47,49.0002]
[1723080782648,6.2825,148.63,148.44,1.34640619]
[1723080782649,47.02300774,148.62,148.44,1.34640619]
[1723080782848,47.02300774,148.62,148.44,35.17640619]
[1723080783048,47.02300774,148.62,148.44,33.83]
[1723080783248,26.7294,148.61,148.43,9.09598508]
[1723080783567,6.7299,148.59,148.41,17.150498]
[1723080783866,0.34,148.58,148.41,17.150498]
[1723080784075,45.0,148.62,148.41,19.72749142]
[1723080784279,1.68290327,148.66,148.42,8.36315589]
[1723080784443,1.68290327,148.66,148.47,33.83]
[1723080784777,8.88356902,148.65,148.48,46.34606785]
[1723080784946,2.15636902,148.65,148.48,46.34617158]
[1723080785149,0.4737842,148.65,148.49,1.34623478]
[1723080785461,0.4737842,148.65,148.55,33.83]
[1723080785643,0.4737842,148.65,148.56,20.0]
[1723080786079,1.68245562,148.64,148.52,16.1522]
[1723080786259,5.89313982,148.69,148.53,20.0]
[1723080786462,5.89313982,148.69,148.52,1.34623946]
[1723080786669,0.80975771,148.68,148.52,1.34623946]
[1723080786867,0.80975771,148.67,148.52,20.0]
[1723080787069,0.80975771,148.67,148.5,20.0]
[1723080787261,5.89313982,148.69,148.51,46.34622667]
[1723080787570,5.89313982,148.69,148.52,0.17]
[1723080787779,16.1607,148.74,148.55,16.15]
[1723080788079,0.8306624,148.79,148.59,6.3215]
[1723080788267,0.8306624,148.79,148.62,33.83]
[1723080788457,0.80975771,148.78,148.63,20.0]
[1723080788850,1.64042011,148.79,148.64,1.34493917]
[1723080789045,8.36132011,148.79,148.63,20.0]
[1723080789270,8.36132011,148.79,148.6,20.0]
[1723080789271,6.634,148.78,148.6,20.0]
[1723080789579,0.80975771,148.77,148.6,20.0]
[1723080789757,21.14975771,148.76,148.55,17.4952195]
[1723080789955,20.34,148.72,148.55,17.4952195]
[1723080790150,41.14975771,148.71,148.55,16.15]
[1723080790365,0.97975771,148.7,148.55,17.49581464]
[1723080790555,0.17,148.7,148.55,17.49581464]
[1723080790767,0.17,148.7,148.55,16.15]
[1723080790967,20.0,148.75,148.55,17.49567492]
[1723080791451,0.80975771,148.74,148.55,16.15]
[1723080791773,0.80975771,148.73,148.55,17.49571787]
[1723080791951,41.14975771,148.73,148.56,20.0]
[1723080792150,21.14975771,148.73,148.56,20.0]
[1723080792346,65.68,148.72,148.56,20.0]
[1723080792574,0.80975771,148.71,148.56,20.0]
[1723080792767,1.14975771,148.7,148.56,20.0]
[1723080792971,0.80975771,148.74,148.57,1.34571891]
[1723080793175,7.03508177,148.76,148.57,46.34571891]
[1723080793375,7.03508177,148.76,148.58,20.0]
[1723080793569,0.8306624,148.79,148.62,33.83]
[1723080793768,0.8306624,148.79,148.63,72.3615451]
[1723080794690,0.8306624,148.79,148.67,33.83]
[1723080794976,0.8306624,148.79,148.71,33.83]
[1723080795155,0.8306624,148.79,148.72,20.0]
[1723080795354,0.8306624,148.79,148.67,33.83]
[1723080795579,0.8306624,148.79,148.68,20.0]
[1723080795949,0.8306624,148.79,148.65,1.34454105]
[1723080796271,1.64042011,148.79,148.64,16.0008]
[1723080796584,6.7233,148.74,148.61,33.83]
[1723080796753,21.14975771,148.73,148.59,16.0336]
[1723080796949,0.17,148.72,148.59,16.0336]
[1723080797374,0.17,148.72,148.59,17.37895071]
[1723080797963,7.70385771,148.72,148.59,16.0336]
[1723080798161,45.17,148.71,148.59,16.0336]
[1723080798368,0.17,148.7,148.59,16.0336]
[1723080799199,20.51,148.7,148.58,1.34554222]
[1723080799478,45.17,148.69,148.55,1.34586181]
[1723080799676,0.97975771,148.68,148.53,15.7855]
[1723080799978,0.17,148.67,148.53,15.7855]
[1723080800162,20.34,148.65,148.52,1.34605441]
[1723080800477,6.5728,148.66,148.47,49.6155]
[1723080800478,73.21755771,148.64,148.47,49.6155]
[1723080801060,46.14975771,148.64,148.47,49.6155]
[1723080801260,65.34,148.63,148.47,49.6155]
[1723080801477,1.14975771,148.62,148.47,49.6155]
[1723080801772,0.34,148.62,148.47,50.96179704]
[1723080801973,0.80975771,148.61,148.47,49.6155]
[1723080802175,0.34,148.6,148.47,49.6155]
[1723080802855,0.34,148.6,148.48,20.0]
[1723080802856,0.17,148.6,148.48,20.0]
[1723080803360,6.5728,148.66,148.51,33.83]
[1723080803564,6.7273,148.65,148.52,20.0]
[1723080803754,6.7278,148.64,148.48,20.0]
[1723080803955,0.80975771,148.63,148.48,20.0]
[1723080804382,6.731,148.57,148.41,48.9554]
[1723080804560,0.80975771,148.56,148.41,48.9554]
[1723080804965,0.34,148.55,148.42,1.34678088]
[1723080805267,0.17,148.55,148.41,50.30217198]
[1723080805453,0.17,148.54,148.41,48.9554]
[1723080805658,0.17,148.54,148.41,50.30230754]
[1723080805858,0.17,148.54,148.41,48.9554]
[1723080806685,6.4325,148.54,148.35,39.17641287]
[1723080806988,0.97975771,148.53,148.37,33.83]
[1723080807161,0.97975771,148.53,148.36,1.34735374]
[1723080807162,0.17,148.52,148.36,1.34735374]
[1723080807367,0.17,148.52,148.36,7.77985374]
[1723080808487,6.2625,148.54,148.37,9.71044523]
[1723080808668,0.80975771,148.53,148.37,1.34728934]
[1723080808856,6.2625,148.54,148.37,35.17728934]
[1723080809275,6.2625,148.54,148.38,65.0]
[1723080809486,6.2625,148.54,148.38,21.34696233]
[1723080809662,6.2625,148.54,148.37,33.83]
[1723080809663,0.80975771,148.53,148.37,33.83]
[1723080809863,0.17,148.52,148.36,6.4325]
[1723080810065,6.734,148.5,148.33,33.83]
[1723080810367,6.734,148.5,148.27,1.34784657]
[1723080810368,26.3962,148.47,148.27,1.34784657]
[1723080810564,0.80975771,148.46,148.27,1.34784657]
[1723080810780,7.0764,148.45,148.27,1.34784657]
[1723080810978,6.5151,148.38,148.23,35.17826155]
[1723080811299,6.5151,148.38,148.24,1.34850038]
[1723080811479,6.5151,148.38,148.29,1.34813359]
[1723080811670,6.5151,148.43,148.3,1.34793278]
[1723080811863,0.34,148.42,148.3,1.34793278]
[1723080812767,6.5151,148.43,148.31,33.83]
[1723080812965,15.0847,148.5,148.3,1.34793278]
[1723080812966,6.4166,148.49,148.35,33.83]
[1723080813187,7.22635771,148.49,148.36,20.0]
[1723080813561,6.4166,148.49,148.36,21.34757369]
[1723080813887,6.4166,148.49,148.36,20.0]
[1723080814068,6.4166,148.49,148.39,33.83]
[1723080814264,15.9297,148.56,148.4,21.34707259]
[1723080814587,6.2756,148.55,148.4,21.34707259]
[1723080814964,6.2756,148.55,148.43,33.83]
[1723080815281,6.2756,148.55,148.44,21.34673696]
[1723080815871,6.2756,148.55,148.44,1.34673696]
[1723080816180,6.2756,148.55,148.41,21.34679672]
[1723080816368,0.80975771,148.54,148.41,20.0]
[1723080816692,0.80975771,148.54,148.34,1.34698433]
[1723080816990,21.14975771,148.54,148.34,1.34698433]
[1723080817192,20.34,148.54,148.34,1.34698433]
[1723080817494,13.31988243,148.55,148.3,6.4187]
[1723080817495,20.34,148.48,148.3,1.34755939]
[1723080817660,6.1678,148.49,148.3,1.34755939]
[1723080817860,16.5432,148.47,148.29,15.0072]
[1723080818064,46.14975771,148.46,148.3,1.34807295]
[1723080818497,45.34,148.46,148.3,1.34807295]
[1723080818884,0.17,148.46,148.3,1.34807295]
[1723080819067,16.5432,148.47,148.3,1.34807295]
[1723080819264,45.80975771,148.46,148.3,1.34807295]
[1723080819465,0.17,148.45,148.3,1.34789367]
[1723080819692,0.17,148.45,148.29,35.17787137]
[1723080819693,0.97975771,148.45,148.29,35.17787137]
[1723080819996,0.17,148.44,148.3,1.3479677]
[1723080820488,0.34,148.45,148.3,1.3479677]
[1723080820694,0.34,148.45,148.3,21.3479677]
[1723080820997,16.5432,148.47,148.3,41.6879677]
[1723080821492,0.17,148.46,148.31,45.0]
[1723080821684,0.17,148.46,148.32,21.34764476]
[1723080821886,6.7377,148.42,148.28,0.8306624]
[1723080822086,27.88825771,148.41,148.28,0.8306624]
[1723080822388,20.34,148.39,148.28,0.8306624]
[1723080822614,46.14975771,148.38,148.28,0.8306624]
[1723080822768,66.48975771,148.38,148.28,0.8306624]
[1723080822972,42.5139,148.37,148.28,0.8306624]
[1723080823179,0.80975771,148.36,148.28,0.8306624]
[1723080823380,1.14975771,148.35,148.28,0.8306624]
[1723080824005,1.14975771,148.35,148.15,20.34]
[1723080824006,20.34,148.33,148.13,2.00522892]
[1723080824184,20.80975771,148.32,148.15,10.56902326]
[1723080824498,0.34,148.31,148.18,33.83]
[1723080824696,45.34,148.33,148.18,1.34903563]
[1723080825275,0.34,148.33,148.18,1.34903563]
[1723080825477,6.1965,148.34,148.21,33.83]
[1723080825681,6.1965,148.34,148.22,1.3485835]
[1723080826070,6.1965,148.34,148.22,21.3485835]
[1723080826273,6.1965,148.34,148.22,20.0]
[1723080826572,6.1965,148.34,148.23,1.34872147]
[1723080826775,6.1965,148.34,148.2,21.34845622]
[1723080826979,6.1965,148.34,148.21,1.34857924]
[1723080827476,0.80975771,148.45,148.23,54.17]
[1723080827678,7.85995503,148.46,148.27,33.83]
[1723080827886,0.80975771,148.45,148.28,21.34785989]
[1723080828103,7.05019732,148.46,148.31,33.83]
[1723080828403,6.1139,148.48,148.35,33.83]
[1723080828571,6.1139,148.48,148.36,21.34711118]
[1723080828776,6.1139,148.48,148.36,21.34730228]
[1723080828974,6.1139,148.48,148.36,20.0]
[1723080829278,6.1139,148.48,148.33,21.34740403]
[1723080829603,6.1139,148.48,148.33,20.0]
[1723080829604,16.4697,148.44,148.33,20.0]
[1723080829779,0.80975771,148.43,148.26,33.83]
[1723080829980,0.80975771,148.42,148.27,20.0]
[1723080830285,16.4697,148.44,148.27,21.34826838]
[1723080830814,45.97975771,148.43,148.3,33.83]
[1723080830997,45.17,148.43,148.31,20.0]
[1723080831200,45.17,148.43,148.27,21.34826838]
[1723080831407,0.80975771,148.42,148.26,33.83]
[1723080831602,45.97975771,148.43,148.27,1.34819655]
[1723080831905,0.17,148.43,148.3,33.83]
[1723080832105,0.34,148.43,148.31,1.34785916]
[1723080832498,0.17,148.43,148.31,1.34785916]
[1723080832988,0.17,148.43,148.31,20.0]
[1723080833189,45.97975771,148.43,148.31,20.0]
[1723080833504,45.97975771,148.43,148.27,21.34795627]
[1723080833818,6.1139,148.48,148.33,33.83]
[1723080834006,6.1139,148.48,148.34,21.34745789]
[1723080834395,6.1139,148.48,148.34,20.0]
[1723080834598,6.1139,148.48,148.34,21.34747147]
[1723080834914,6.1139,148.48,148.34,21.34745781]
[1723080835116,6.1139,148.48,148.34,20.0]
[1723080835338,6.1139,148.48,148.37,33.83]
[1723080835487,6.1139,148.48,148.38,21.34712876]
[1723080835997,6.1139,148.48,148.38,20.0]
[1723080836812,6.1139,148.48,148.28,15.0636]
[1723080836813,0.17,148.47,148.28,15.0636]
[1723080837016,0.17,148.47,148.29,1.3476873]
[1723080837220,0.17,148.47,148.34,1.3477832]
[1723080837930,0.34,148.47,148.34,1.3477832]
[1723080838089,6.1139,148.48,148.35,1.34749101]
[1723080838494,6.1139,148.48,148.36,1.34744479]
[1723080838931,6.1139,148.48,148.37,1.34742839]
[1723080839523,6.3305,148.53,148.4,33.83]
[1723080839705,6.3305,148.53,148.44,33.83]
[1723080839905,6.3305,148.53,148.41,21.34672731]
[1723080840113,6.3305,148.53,148.41,20.0]
[1723080840901,0.80975771,148.52,148.41,20.0]
[1723080841218,6.3305,148.53,148.37,33.83]
[1723080841424,7.14025771,148.53,148.38,21.34714077]
[1723080841928,20.34,148.48,148.33,33.83]
[1723080842107,23.1495,148.51,148.34,1.34766379]
[1723080842302,45.17,148.5,148.34,1.34766379]
[1723080842499,0.17,148.5,148.34,1.34766379]
[1723080842796,23.1495,148.51,148.34,1.34766379]
[1723080843015,6.5856,148.51,148.4,33.83]
[1723080843222,6.5856,148.51,148.41,20.0]
[1723080843524,6.5856,148.51,148.42,1.34711511]
[1723080844419,6.5856,148.51,148.41,20.0]
[1723080844818,6.5856,148.51,148.4,33.83]
[1723080845200,0.17,148.5,148.41,1.34724598]
[1723080845707,6.5856,148.51,148.41,1.34724598]
[1723080845923,6.3609,148.56,148.41,1.34724598]
[1723080846226,6.3609,148.56,148.44,33.83]
[1723080846426,6.3609,148.56,148.45,66.34633173]
[1723080846606,6.3609,148.56,148.46,1.34637829]
[1723080846794,7.04061169,148.64,148.48,33.83]
[1723080846999,0.8306624,148.65,148.52,33.83]
[1723080847226,0.8306624,148.65,148.53,21.3456175]
[1723080847410,0.8306624,148.65,148.53,21.34597354]
[1723080847601,0.8306624,148.65,148.53,20.0]
[1723080848023,0.8306624,148.65,148.54,1.34598177]
[1723080848218,0.8306624,148.65,148.53,20.0]
[1723080848817,0.8306624,148.65,148.47,33.83]
[1723080848818,0.80975771,148.64,148.47,33.83]
[1723080849017,6.7287,148.62,148.47,33.83]
[1723080849259,0.80975771,148.63,148.47,35.17657923]
[1723080849443,0.80975771,148.64,148.47,35.17657923]
[1723080849823,27.0691,148.61,148.44,1.34629921]
[1723080850127,0.80975771,148.64,148.44,1.34629921]
[1723080850128,0.80975771,148.64,148.45,1.34663801]
[1723080850330,7.53925771,148.6,148.44,35.17663801]
[1723080850497,7.53925771,148.6,148.4,39.8975]
[1723080850498,20.34,148.56,148.4,33.83]
[1723080850714,27.88155771,148.55,148.4,33.83]
[1723080851005,27.88155771,148.55,148.37,15.7984]
[1723080851006,27.4122,148.54,148.37,15.7984]
[1723080851306,20.34,148.5,148.33,33.83]
[1723080851508,20.34,148.48,148.33,33.83]
[1723080851710,0.97975771,148.49,148.33,35.1778832]
[1723080851711,45.34,148.47,148.33,35.1778832]
[1723080852103,0.34,148.47,148.33,35.1778832]
[1723080852309,0.34,148.48,148.33,35.1778832]
[1723080852534,6.25,148.52,148.33,35.1778832]
[1723080852707,45.0,148.51,148.34,20.0]
[1723080852906,6.25,148.52,148.37,33.83]
[1723080852907,0.34,148.5,148.37,33.83]
[1723080853107,0.34,148.51,148.38,21.34711719]
[1723080853934,6.25,148.52,148.38,21.34711719]
[1723080854233,6.25,148.52,148.41,33.83]
[1723080854405,6.25,148.52,148.42,21.34673934]
[1723080854606,6.21,148.58,148.43,46.34660159]
[1723080854828,6.21,148.58,148.44,20.0]
[1723080855039,6.21,148.58,148.45,35.17657063]
[1723080855341,6.21,148.58,148.46,20.0]
[1723080855629,6.21,148.58,148.47,1.34655283]
[1723080856213,6.1448,148.64,148.49,33.83]
[1723080856429,6.1448,148.64,148.5,21.34606385]
[1723080856613,6.1448,148.64,148.53,33.83]
[1723080856935,6.95455771,148.64,148.54,20.0]
[1723080857105,6.1448,148.64,148.54,20.0]
[1723080858332,0.80975771,148.63,148.47,33.83]
[1723080858537,6.1448,148.64,148.48,1.34639891]
[1723080858538,13.68225771,148.64,148.48,1.34639891]
[1723080858838,6.95455771,148.64,148.47,35.17656285]
[1723080859216,6.1448,148.64,148.47,35.17656285]
[1723080859936,0.80975771,148.63,148.47,33.83]
[1723080860230,6.1448,148.64,148.48,1.34605247]
[1723080860529,6.1448,148.64,148.49,1.34614471]
[1723080860834,6.1448,148.64,148.51,33.83]
[1723080861015,6.1448,148.64,148.52,1.34595393]
[1723080861222,6.1448,148.64,148.52,21.34595393]
[1723080861422,6.1448,148.64,148.52,20.0]
[1723080861739,6.1448,148.64,148.52,21.34606506]
[1723080863011,6.1448,148.64,148.52,20.0]
[1723080863216,6.1448,148.64,148.52,1.34606681]
[1723080863427,45.97975771,148.63,148.48,1.3463689]
[1723080863619,45.17,148.63,148.49,1.34636136]
[1723080864010,0.17,148.62,148.49,1.34636136]
[1723080864439,0.34,148.63,148.49,1.34636136]
[1723080864735,45.34,148.63,148.5,1.34613678]
[1723080865326,45.34,148.63,148.48,20.0]
[1723080865327,46.14975771,148.63,148.48,20.0]
[1723080865557,6.7299,148.59,148.42,1.34642058]
[1723080865834,45.17,148.58,148.45,1.34642058]
[1723080866011,0.17,148.57,148.46,1.34659073]
[1723080866212,0.34,148.57,148.46,1.34659073]
[1723080866413,0.34,148.57,148.44,51.12101604]
[1723080867643,0.34,148.57,148.45,1.34667092]
[1723080867936,7.5578624,148.65,148.46,1.3466719]
[1723080868148,0.8306624,148.65,148.46,21.3466719]
[1723080868366,0.8306624,148.65,148.48,33.83]
[1723080868648,0.8306624,148.65,148.49,21.3461338]
[1723080869249,0.8306624,148.65,148.5,45.0]
[1723080869440,0.8306624,148.65,148.51,20.0]
[1723080869743,0.8306624,148.65,148.49,20.0]
[1723080869744,0.8306624,148.65,148.49,21.34612122]
[1723080870737,45.17,148.63,148.49,21.34612122]
[1723080871050,0.17,148.62,148.49,21.34612122]
[1723080872245,0.17,148.63,148.5,45.0]
[1723080872446,0.17,148.63,148.51,1.34596064]
[1723080872640,0.8306624,148.65,148.51,1.34596064]
[1723080872848,0.8306624,148.65,148.51,21.34596064]
[1723080873552,0.8306624,148.65,148.51,1.34596064]
[1723080873849,0.8306624,148.65,148.5,46.34591549]
[1723080874039,0.8306624,148.65,148.52,33.83]
[1723080874222,0.8306624,148.65,148.53,66.34567081]
[1723080874423,0.8306624,148.65,148.53,20.0]
[1723080874939,0.8306624,148.65,148.53,21.34577169]
[1723080875144,0.8306624,148.65,148.53,20.0]
[1723080875335,0.8306624,148.65,148.54,1.34603874]
[1723080875653,0.8306624,148.65,148.53,21.34585452]
[1723080875839,0.8306624,148.65,148.53,20.0]
[1723080876042,0.8306624,148.65,148.53,21.34574686]
[1723080876349,0.8306624,148.65,148.53,21.34587065]
[1723080876658,0.8306624,148.65,148.56,33.83]
[1723080876948,0.8306624,148.65,148.57,66.34535411]
[1723080877250,0.8306624,148.65,148.58,1.34538129]
[1723080877451,0.8306624,148.65,148.57,21.34547696]
[1723080877757,0.8306624,148.65,148.57,20.0]
[1723080878252,0.8306624,148.65,148.58,1.34565218]
[1723080879023,0.8306624,148.65,148.57,20.0]
[1723080879234,0.8306624,148.65,148.58,1.34565275]
[1723080880025,0.8306624,148.65,148.54,33.83]
[1723080880428,0.17,148.64,148.52,2.60007171]
[1723080880654,0.34,148.64,148.49,1.34580119]
[1723080881158,0.34,148.64,148.49,3.93710361]
[1723080881324,0.8306624,148.65,148.49,3.93710361]
[1723080881525,0.8306624,148.65,148.51,33.83]
[1723080881737,0.8306624,148.65,148.52,21.34584286]
[1723080881942,0.17,148.64,148.52,21.34584286]
[1723080882333,0.34,148.64,148.52,21.34584286]
[1723080882547,0.17,148.64,148.52,21.34584286]
[1723080883234,0.8306624,148.65,148.53,45.0]
[1723080883432,0.8306624,148.65,148.54,21.34570336]
[1723080883629,0.8306624,148.65,148.55,46.34550773]
[1723080883924,0.8306624,148.65,148.56,20.0]
[1723080884144,0.8306624,148.65,148.59,33.83]
[1723080884348,0.8306624,148.65,148.6,20.0]
[1723080884661,0.8306624,148.65,148.58,1.34541026]
[1723080884830,0.8306624,148.65,148.57,1.34542283]
[1723080885029,0.8306624,148.65,148.58,1.34541179]
[1723080885540,0.8306624,148.65,148.58,21.34541179]
[1723080886554,0.8306624,148.65,148.58,1.34541179]
[1723080886730,0.8306624,148.65,148.59,1.34543921]
[1723080886930,0.8306624,148.65,148.51,1.34554648]
[1723080887143,0.17,148.64,148.51,1.34587606]
[1723080887346,0.17,148.64,148.52,1.34587606]
[1723080887860,0.34,148.64,148.52,1.34587606]
[1723080888231,6.5152,148.62,148.47,33.83]
[1723080888432,7.87885771,148.61,148.43,1.34650255]
[1723080888643,45.80975771,148.6,148.44,33.83]
[1723080888829,0.34,148.59,148.45,1.3465747]
[1723080889455,0.80975771,148.58,148.44,33.83]
[1723080889638,6.7313,148.56,148.36,15.6185]
[1723080889836,6.4401,148.53,148.36,1.34707985]
[1723080890042,6.4401,148.49,148.33,33.83]